Workbook

Sheet Sheet2
D1: формула делить 124 OTHERS на два. Хотя 124 OTHERS не имеет подразделов.
E2: формула правильна.
A3: Area name | B3: Mother tongue name | C3: Total | D3: Всего население в Area | E3: % по родным языкам | H3: Дан список териитории штата Индии. Численность носителей родного языка. У каждого языка есть свой подязык. Поэтому в сумме территория дает почти в два раза выше чем на самом деле. Почти употребляется так как 124 OTHERS не повторяется. Надо посчитать процент каждого родного языка по территориям. Для этого надо посчитать сумму каждого Area name.
C4: Population
C5: 1
A7: CHHATTISGARH | B7: 1 ASSAMESE | C7: 1595 | D7: =SUMIF(A:A,A7,G:G) -> 249633 | E7: =C7/D7*100 -> 0.6389379609 | G7: =C7*a -> 1595
A8: CHHATTISGARH | B8: Assamese | C8: 1582 | D8: =SUMIF(A:A,A8,G:G) -> 249633 | E8: 0.6337303161 | G8: =C8*a -> 0
A9: CHHATTISGARH | B9: 1 Others | C9: 13 | D9: =SUMIF(A:A,A9,G:G) -> 249633 | E9: 0.005207644823 | G9: =C9*a -> 0
A10: CHHATTISGARH | B10: 2 BENGALI | C10: 243597 | D10: 249633 | E10: 97.58205045 | G10: =C10*a -> 243597
A11: CHHATTISGARH | B11: Bengali | C11: 243570 | D11: 249633 | E11: 97.57123457 | G11: =C11*a -> 0
A12: CHHATTISGARH | B12: Chakma | C12: 7 | D12: 249633 | E12: 0.002804116443 | G12: =C12*a -> 0
A13: CHHATTISGARH | B13: Haijong/Hajong | C13: 4 | D13: 249633 | E13: 0.001602352253 | G13: =C13*a -> 0
A14: CHHATTISGARH | B14: Rajbangsi | C14: 1 | D14: 249633 | E14: 0.0004005880633 | G14: =C14*a -> 0
A15: CHHATTISGARH | B15: 2 Others | C15: 15 | D15: 249633 | E15: 0.006008820949 | G15: =C15*a -> 0
A16: CHHATTISGARH | B16: 3 BODO | C16: 88 | D16: 249633 | E16: 0.03525174957 | G16: =C16*a -> 88
A17: CHHATTISGARH | B17: Bodo/Boro | C17: 87 | D17: 249633 | E17: 0.03485116151 | G17: =C17*a -> 0
A18: CHHATTISGARH | B18: 124 OTHERS | C18: 4353 | D18: 249633 | E18: =C18/D18*100 -> 1.743759839 | G18: =C18*a -> 4353
A19: Koriya | B19: 1 ASSAMESE | C19: 8 | D19: =SUMIF(A:A,A19,G:G) -> 628303 | E19: 0.001273271017 | G19: =C19*a -> 8
A20: Koriya | B20: Assamese | C20: 8 | D20: =SUMIF(A:A,A20,G:G) -> 628303 | E20: 0.001273271017 | G20: =C20*a -> 0
A21: Koriya | B21: 2 BENGALI | C21: 6112 | D21: 628303 | E21: 0.9727790572 | G21: =C21*a -> 6112
A22: Koriya | B22: Bengali | C22: 6112 | D22: 628303 | E22: 0.9727790572 | G22: =C22*a -> 0
A23: Koriya | B23: 4 DOGRI | C23: 15 | D23: 628303 | E23: 0.002387383157 | G23: =C23*a -> 15
A24: Koriya | B24: Dogri | C24: 15 | D24: 628303 | E24: 0.002387383157 | G24: =C24*a -> 0
A25: Koriya | B25: 5 GUJARATI | C25: 637 | D25: 628303 | E25: 0.1013842048 | G25: =C25*a -> 637
A26: Koriya | B26: Gujarati | C26: 366 | D26: 628303 | E26: 0.05825214904 | G26: =C26*a -> 0
A27: Koriya | B27: 5 Others | C27: 271 | D27: 628303 | E27: 0.04313205571 | G27: =C27*a -> 0
A28: Koriya | B28: 6 HINDI | C28: 621319 | D28: 628303 | E28: 98.8884344 | G28: =C28*a -> 621319
A29: Koriya | B29: Awadhi | C29: 245 | D29: 628303 | E29: 0.03899392491 | G29: =C29*a -> 0
A30: Koriya | B30: Bagheli/Baghel Khandi | C30: 30218 | D30: 628303 | E30: 4.80946295 | G30: =C30*a -> 0
A31: Koriya | B31: Banjari | C31: 29 | D31: 628303 | E31: 0.004615607438 | G31: =C31*a -> 0
A32: Koriya | B32: Bhagoria | C32: 20752 | D32: 628303 | E32: 3.302865019 | G32: =C32*a -> 0
A33: Koriya | B33: Bharmauri/Gaddi | C33: 1 | D33: 628303 | E33: 0.0001591588772 | G33: =C33*a -> 0
A34: Koriya | B34: Bhojpuri | C34: 8240 | D34: 628303 | E34: 1.311469148 | G34: =C34*a -> 0
A35: Koriya | B35: Brajbhasha | C35: 121 | D35: 628303 | E35: 0.01925822414 | G35: =C35*a -> 0
A36: Koriya | B36: Bundeli/Bundel khandi | C36: 682 | D36: 628303 | E36: 0.1085463542 | G36: =C36*a -> 0
A37: Koriya | B37: Chhattisgarhi | C37: 27364 | D37: 628303 | E37: 4.355223515 | G37: =C37*a -> 0
A38: Koriya | B38: Garhwali | C38: 18 | D38: 628303 | E38: 0.002864859789 | G38: =C38*a -> 0
A39: Koriya | B39: 22 Others | C39: 1 | D39: 628303 | E39: =C39/D39*100 -> 0.0001591588772 | G39: =C39*a -> 0
A40: Koriya | B40: 26 ANGAMI | C40: 3 | D40: 628303 | E40: 0.0004774766315 | G40: =C40*a -> 3
A41: Koriya | B41: Lushai/Mizo | C41: 1 | D41: 628303 | E41: =C41/D41*100 -> 0.0001591588772 | G41: =C41*a -> 0
A42: Koriya | B42: 91 MUNDA | C42: 12 | D42: 628303 | E42: 0.001909906526 | G42: =C42*a -> 12
A43: Koriya | B43: Munda | C43: 11 | D43: 628303 | E43: 0.001750747649 | G43: =C43*a -> 0
A44: Koriya | B44: 91 Others | C44: 1 | D44: 628303 | E44: 0.0001591588772 | G44: =C44*a -> 0
A45: Koriya | B45: 92 MUNDARI | C45: 12 | D45: 628303 | E45: 0.001909906526 | G45: =C45*a -> 12
A46: Koriya | B46: Mundari | C46: 12 | D46: 628303 | E46: 0.001909906526 | G46: =C46*a -> 0
A47: Koriya | B47: 124 OTHERS | C47: 185 | D47: 628303 | E47: 0.02944439228 | G47: =C47*a -> 185
A48: Bharatpur | B48: 2 BENGALI | C48: 37 | D48: 88330 | E48: 0.04188837315 | G48: =C48*a -> 37
A49: Bharatpur | B49: Bengali | C49: 37 | D49: 88330 | E49: 0.04188837315 | G49: =C49*a -> 0
A50: Bharatpur | B50: 5 GUJARATI | C50: 7 | D50: 88330 | E50: 0.007924827352 | G50: =C50*a -> 7
A51: Bharatpur | B51: Gujarati | C51: 3 | D51: 88330 | E51: 0.003396354579 | G51: =C51*a -> 0
A52: Bharatpur | B52: 5 Others | C52: 4 | D52: 88330 | E52: 0.004528472773 | G52: =C52*a -> 0
A53: Bharatpur | B53: 6 HINDI | C53: 88286 | D53: 88330 | E53: 99.9501868 | G53: =C53*a -> 88286
A54: Bharatpur | B54: Awadhi | C54: 1 | D54: 88330 | E54: 0.001132118193 | G54: =C54*a -> 0
A55: Bharatpur | B55: Bagheli/Baghel Khandi | C55: 25451 | D55: 88330 | E55: 28.81354013 | G55: =C55*a -> 0
A56: Bharatpur | B56: Banjari | C56: 1 | D56: 88330 | E56: 0.001132118193 | G56: =C56*a -> 0
A57: Bharatpur | B57: Bhagoria | C57: 20737 | D57: 88330 | E57: 23.47673497 | G57: =C57*a -> 0
A58: Bharatpur | B58: Bhojpuri | C58: 205 | D58: 88330 | E58: 0.2320842296 | G58: =C58*a -> 0
A59: Baikunthpur | B59: Koda/Kora | C59: 13 | D59: 7498 | E59: =C59/D59*100 -> 0.1733795679 | G59: =C59*a -> 0
A60: Baikunthpur | B60: 68 KORWA | C60: 198 | D60: 7498 | E60: 2.640704188 | G60: =C60*a -> 198
A61: Baikunthpur | B61: Koraku | C61: 198 | D61: 7498 | E61: 2.640704188 | G61: =C61*a -> 0
A62: Baikunthpur | B62: 72 KURUKH/ORAON | C62: 7266 | D62: 7498 | E62: 96.90584156 | G62: =C62*a -> 7266
A63: Baikunthpur | B63: Kurukh/Oraon | C63: 7266 | D63: 7498 | E63: 96.90584156 | G63: =C63*a -> 0
A64: Baikunthpur | B64: 91 MUNDA | C64: 6 | D64: 7498 | E64: 0.08002133902 | G64: =C64*a -> 6
A65: Baikunthpur | B65: Munda | C65: 6 | D65: 7498 | E65: 0.08002133902 | G65: =C65*a -> 0
A66: Baikunthpur | B66: 92 MUNDARI | C66: 9 | D66: 7498 | E66: 0.1200320085 | G66: =C66*a -> 9
A67: Baikunthpur | B67: Mundari | C67: 9 | D67: 7498 | E67: 0.1200320085 | G67: =C67*a -> 0
A68: Baikunthpur | B68: 124 OTHERS | C68: 19 | D68: 7498 | E68: 0.2534009069 | G68: =C68*a -> 19
